bitfinex-derivatives/quotes_ETHF0:USTF0_20250103
["timestamp","ask_amount","ask_price","bid_price","bid_amount"]
[1735941246272,5.63252535,3610.8,3610.7,0.27705]
[1735941246476,43.17302481,3610.8,3610.7,0.27705]
[1735941248974,2.37302481,3610.8,3610.7,0.27705]
[1735941251871,2.09597481,3610.8,3610.3,4.34718171]
[1735941252071,2.37304481,3610.4,3610.3,0.27706]
[1735941252270,0.27707,3610.6,3610.5,0.27705]
[1735941252975,2.37302481,3610.7,3610.6,0.27705]
[1735941256986,0.27708,3610.4,3610.3,0.27707]
[1735941262583,2.69011356,3610.7,3610.2,0.5093]
[1735941262887,0.27707,3610.6,3610.5,0.27705]
[1735941263684,0.59413875,3610.7,3610.3,0.6927]
[1735941263983,0.27704,3610.9,3610.4,0.69268]
[1735941264186,0.27704,3610.9,3610.8,0.27704]
[1735941264388,1.29021573,3610.9,3610.8,0.27704]
[1735941266390,0.27704,3610.9,3610.8,0.27704]
[1735941267085,41.07704,3610.9,3610.8,0.27704]
[1735941267891,41.07703,3610.9,3610.8,0.27704]
[1735941268093,40.8,3610.9,3610.8,0.27704]
[1735941268283,41.07703,3610.9,3610.8,0.27704]
[1735941268984,40.8,3610.9,3610.8,0.27704]
[1735941270790,0.27703,3611.1,3611.0,0.27704]
[1735941271287,40.8,3611.1,3611.0,0.27704]
[1735941271481,41.07704,3611.1,3611.0,0.27704]
[1735941275883,41.07704,3611.1,3611.0,0.81534]
[1735941276491,43.25042615,3611.1,3611.0,0.81534]
[1735941277090,42.97338615,3611.1,3611.0,0.81534]
[1735941278190,42.97338615,3611.1,3611.0,5.16252171]
[1735941279287,40.8,3611.1,3611.0,5.16252171]
[1735941279487,41.07702,3611.1,3611.0,5.16252171]
[1735941281290,40.8,3611.1,3611.0,5.16252171]
[1735941281989,41.07702,3611.1,3611.0,5.16252171]
[1735941283092,2.17338615,3611.2,3611.0,5.16252171]
[1735941283289,0.27702,3611.1,3611.0,5.16252171]
[1735941283591,41.07702,3611.1,3611.0,5.16252171]
[1735941283994,41.07702,3611.1,3611.0,4.62422171]
[1735941284993,41.07702,3611.1,3611.0,0.27704]
[1735941286498,41.07702,3611.1,3611.0,4.62422171]
[1735941286794,0.27702,3611.1,3611.0,4.62422171]
[1735941287795,0.27702,3611.1,3611.0,0.27704]
[1735941288189,1.29001716,3611.1,3611.0,0.27704]
[1735941290896,3.46340331,3611.1,3611.0,0.27704]
[1735941292099,3.46340331,3611.1,3611.0,4.62422171]
[1735941296604,1.29001716,3611.1,3611.0,4.62422171]
[1735941298007,3.46340331,3611.1,3611.0,4.62422171]
[1735941300607,3.46340331,3611.1,3611.0,4.34718171]
[1735941300804,4.97494458,3611.1,3611.0,4.34718171]
[1735941301300,9.97494458,3611.1,3611.0,3.62068171]
[1735941301501,9.69792458,3611.1,3610.9,6.51354887]
[1735941301705,1.88506843,3611.0,3610.9,5.85174887]
[1735941301898,0.87207127,3611.0,3610.9,5.85174887]
[1735941302302,4.05501926,3611.0,3610.9,5.85174887]
[1735941302503,0.27709,3610.3,3610.2,0.27709]
[1735941302706,3.48489,3610.3,3610.2,0.27709]
[1735941302907,0.27709,3610.3,3610.2,0.27709]
[1735941303499,0.69268,3610.6,3610.1,1.4822]
[1735941303704,0.2771,3610.2,3610.1,1.7593]
[1735941304010,3.4849,3610.2,3610.1,1.4822]
[1735941304208,3.4849,3610.2,3610.1,1.7593]
[1735941304409,3.4849,3610.2,3610.1,1.4822]
[1735941305103,6.75216818,3610.2,3610.1,1.4822]
[1735941306612,3.4849,3610.2,3610.1,1.4822]
[1735941306909,0.2771,3610.2,3610.1,1.4822]
[1735941307111,0.2771,3610.2,3610.1,1.7593]
[1735941309506,3.4849,3610.2,3610.1,1.7593]
[1735941309711,3.4849,3610.2,3610.1,1.4822]
[1735941310313,0.2771,3610.2,3610.1,1.7593]
[1735941312909,3.2078,3610.2,3609.5,8.70878445]
[1735941313112,3.2078,3609.8,3609.5,8.70878445]
[1735941313307,0.27714,3609.6,3609.5,8.98592445]
[1735941313704,0.27714,3609.6,3609.5,0.27714]
[1735941319117,0.27714,3609.7,3609.6,0.27713]
[1735941319316,3.2078,3609.8,3609.7,0.27713]
[1735941319516,0.27711,3610.0,3609.9,0.27712]
[1735941319714,2.17635982,3610.1,3609.6,0.69284]
[1735941319919,2.45345982,3610.1,3610.0,0.27711]
[1735941320922,2.17635982,3610.1,3610.0,0.27711]
[1735941321112,3.4849,3610.2,3609.6,0.69284]
[1735941321309,3.4849,3610.2,3610.1,0.2771]
[1735941322932,2.37303799,3610.3,3610.2,0.27709]
[1735941323828,0.2771,3610.2,3610.1,0.2771]
[1735941324827,0.2771,3610.1,3610.0,1.0054]
[1735941325131,0.27715,3609.6,3609.5,0.27713]
[1735941325327,0.27715,3609.6,3609.5,0.79853]
[1735941325539,41.07715,3609.6,3609.5,0.79853]
[1735941326036,40.8,3609.6,3609.5,0.79853]
[1735941326233,0.27713,3609.8,3609.7,0.27713]
[1735941326835,3.48492,3609.9,3609.8,0.27713]
[1735941328228,3.2078,3609.9,3609.8,0.27713]
[1735941328931,2.45344982,3610.3,3609.8,0.27713]
[1735941329136,2.45344982,3610.3,3610.2,0.2771]
[1735941329338,0.27709,3610.3,3610.2,0.2771]
[1735941329739,2.37302799,3610.4,3610.3,0.27709]
[1735941330633,0.27708,3610.4,3610.3,0.27709]
[1735941336439,1.29051684,3610.4,3610.3,0.27709]
[1735941338036,0.27711,3610.0,3609.9,0.5239]
[1735941338236,0.27714,3609.6,3609.5,1.0236]
[1735941338442,3.2078,3609.6,3609.5,2.31418684]
[1735941338640,40.8,3609.6,3609.5,11.02297129]
[1735941338839,1.01343684,3609.8,3609.5,10.74582129]
[1735941339146,1.29056684,3609.8,3609.7,0.27713]
[1735941339443,42.09056684,3609.8,3609.7,0.27713]
[1735941340340,41.07713,3609.8,3609.7,0.27713]
[1735941343248,0.27713,3609.8,3609.7,0.27713]
[1735941343946,2.17635982,3609.9,3609.8,0.27713]
[1735941344352,2.45347982,3609.9,3609.8,0.27713]
[1735941344646,2.17635982,3609.9,3609.8,0.27713]
[1735941344847,0.27712,3610.0,3609.5,1.0236]
[1735941345039,0.27712,3610.0,3609.9,0.27712]
[1735941346443,2.45347982,3610.0,3609.9,0.27712]
[1735941347345,5.66127982,3610.0,3609.9,0.27712]
[1735941347651,3.48492,3610.0,3609.9,0.27712]
[1735941348948,3.2078,3610.0,3609.5,1.0236]
[1735941349154,0.27713,3609.9,3609.8,0.27712]
[1735941349355,41.07713,3609.9,3609.8,0.27712]
[1735941349844,40.8,3609.9,3609.5,1.0236]
[1735941350144,0.27714,3609.7,3609.6,0.27713]
[1735941350350,0.27713,3609.8,3609.7,0.27713]
[1735941351049,2.45577526,3609.8,3609.7,0.27713]
[1735941358847,0.27714,3609.7,3609.6,0.27714]
[1735941359748,2.45578526,3609.7,3609.6,0.27714]
[1735941360254,3.46970722,3609.7,3609.6,0.27714]
[1735941360851,3.19256722,3609.7,3609.5,1.0236]
[1735941361153,0.27714,3609.6,3609.5,0.5115]
[1735941362251,0.27714,3609.6,3609.3,0.78046]
[1735941362252,3.2078,3609.6,3609.3,0.5033]
[1735941362553,1.29108196,3609.4,3609.3,0.5033]
[1735941362756,1.29108196,3609.4,3609.3,0.78047]
[1735941363158,1.29108196,3609.4,3609.3,0.5033]
[1735941363853,1.29108196,3609.4,3609.3,0.78047]
[1735941365961,1.29108196,3609.4,3609.3,0.5033]
[1735941366151,1.29108196,3609.4,3609.3,0.78048]
[1735941366350,0.27716,3609.4,3609.3,0.78048]
[1735941366554,1.29108196,3609.4,3609.3,0.78048]
[1735941367559,3.46889462,3609.4,3609.3,0.78048]
[1735941368154,2.17781266,3609.4,3609.3,0.78048]
[1735941368356,3.19173462,3609.4,3609.3,0.78048]
[1735941369857,1.01392196,3609.4,3609.3,0.78048]
[1735941383368,1.01392196,3609.4,3609.3,5.10481505]
[1735941386078,1.01392196,3609.4,3609.3,11.63019935]
[1735941388675,2.17781266,3609.5,3609.4,0.27717]
[1735941389376,5.38561266,3609.6,3609.5,0.27717]
[1735941390578,3.2078,3609.6,3609.5,11.12688935]
[1735941392986,2.17781266,3609.7,3609.6,0.27716]
[1735941393181,2.17781266,3609.7,3609.6,2.15478196]
[1735941394089,3.26726818,3609.9,3609.8,0.27714]
[1735941394282,3.26726818,3609.9,3609.8,1.29106196]
[1735941395182,4.28119014,3610.4,3610.3,0.2771]
[1735941395784,4.55829014,3610.4,3610.3,0.2771]
[1735941395985,4.28119014,3610.4,3610.3,0.2771]
[1735941396380,1.29102196,3610.4,3610.3,0.2771]
[1735941397089,1.01392196,3610.4,3610.3,0.2771]
[1735941397984,4.55829014,3610.4,3610.3,0.2771]
[1735941399289,1.29102196,3610.4,3610.3,0.2771]
[1735941400092,1.01392196,3610.4,3610.3,0.2771]
[1735941400287,1.29102196,3610.4,3610.3,0.2771]
[1735941400589,1.01392196,3610.4,3610.3,0.2771]
[1735941400782,1.29102196,3610.4,3610.3,0.2771]
[1735941400981,1.01392196,3610.4,3610.3,0.2771]
[1735941401294,3.26726818,3610.5,3610.4,0.2771]
[1735941401493,3.26726818,3610.5,3610.4,1.29102196]
[1735941401791,3.26726818,3610.6,3610.4,1.01392196]
[1735941402086,3.26726818,3610.6,3610.5,0.27709]
[1735941403493,0.27707,3610.7,3610.4,1.01392196]
[1735941403691,0.27707,3610.7,3610.6,0.27708]
[1735941404194,1.01392196,3610.8,3610.4,1.01392196]
[1735941404491,1.29099196,3610.8,3610.7,0.27707]
[1735941409198,4.49879196,3610.8,3610.7,0.27707]
[1735941412099,0.27709,3610.6,3610.5,0.27708]
[1735941412289,1.29101196,3610.6,3610.5,0.27708]
[1735941418302,1.01392196,3610.6,3610.2,0.859]
[1735941418604,1.29102196,3610.3,3610.2,1.13611]
[1735941419606,1.01392196,3610.3,3610.2,1.13611]
[1735941419902,1.29102196,3610.3,3610.2,1.13611]
[1735941421199,1.29102196,3610.3,3610.2,0.27711]
[1735941421496,1.01392196,3610.3,3610.2,0.27711]
[1735941422906,1.29102196,3610.3,3610.2,0.27711]
[1735941425099,1.01392196,3610.3,3610.1,0.4315]
[1735941425300,1.01392196,3610.3,3609.8,4.33782538]
[1735941425506,3.2078,3610.4,3609.8,0.71584]
[1735941425507,4.49886196,3609.9,3609.8,0.71584]
[1735941425806,4.49886196,3609.9,3609.8,0.4387]
[1735941426899,4.22172196,3609.9,3609.7,4.33782538]
[1735941427209,0.27717,3609.6,3609.5,0.27717]
[1735941429210,0.27717,3609.5,3609.4,0.71587]
[1735941429514,4.49889196,3609.5,3609.4,0.71587]
[1735941430915,4.22172196,3609.5,3609.4,0.71587]
[1735941431213,4.49889196,3609.5,3609.4,0.71587]
[1735941431715,4.22172196,3609.5,3609.4,0.71587]
[1735941433319,4.49889196,3609.5,3609.4,0.71587]
[1735941435316,4.22172196,3609.5,3609.4,0.71587]
[1735941436315,3.54438818,3610.1,3610.0,0.27713]
[1735941436516,4.55831014,3610.1,3610.0,0.27713]
[1735941437116,0.27714,3609.9,3609.8,0.27714]
[1735941437416,4.49886196,3609.9,3609.8,0.27714]
[1735941437617,4.22172196,3609.9,3609.8,0.27714]
[1735941439419,4.49886196,3609.9,3609.8,0.27714]
[1735941440219,0.27717,3609.6,3609.5,0.27716]
[1735941440521,0.27718,3609.4,3609.3,0.27717]
[1735941440710,45.29890196,3609.4,3609.3,0.27717]
[1735941442012,4.49890196,3609.4,3609.3,0.27717]
[1735941442211,3.2078,3609.4,3609.3,0.27717]
[1735941443222,1.29109196,3609.6,3609.5,0.27717]
[1735941444618,0.27717,3609.6,3609.5,0.27717]
[1735941444821,1.29109196,3609.6,3609.5,0.27717]
[1735941446921,0.27715,3609.7,3609.6,0.27715]
[1735941447326,4.22172196,3609.8,3609.7,0.27715]
[1735941447926,3.2078,3609.8,3609.7,0.27715]
[1735941448121,3.2078,3609.8,3609.7,1.29107196]
[1735941449333,4.49883196,3610.2,3610.1,0.27712]
[1735941449522,3.2078,3610.2,3610.1,0.27712]
[1735941450432,3.26726818,3610.5,3610.4,0.2771]
[1735941450630,3.2078,3610.6,3610.5,0.27709]
[1735941451324,3.26726818,3610.9,3610.8,0.27707]
[1735941451526,3.54432818,3610.9,3610.8,0.27707]
[1735941451727,1.22696818,3610.9,3610.8,1.29099196]
[1735941451926,0.54686818,3611.3,3610.8,1.01392196]
[1735941452230,0.27705,3611.0,3610.9,0.27706]
[1735941452419,3.48485,3611.1,3610.9,0.27706]
[1735941452621,3.48485,3611.1,3610.6,0.27708]
[1735941452622,0.27707,3610.7,3610.6,0.27708]
[1735941452823,0.27707,3610.7,3610.4,0.27709]
[1735941452824,0.27708,3610.6,3610.4,0.27709]
[1735941453126,0.27708,3610.6,3610.5,0.27709]
[1735941453328,3.92158,3610.7,3610.2,0.27711]
[1735941453529,3.92158,3610.7,3610.5,0.27708]
[1735941453930,3.6445,3610.7,3610.5,0.27708]
[1735941454131,0.27708,3610.6,3610.5,0.27708]
[1735941454532,3.2078,3610.7,3610.5,2.09519567]
[1735941454728,3.2078,3611.1,3611.0,0.27705]
[1735941458230,3.6295,3611.6,3611.5,0.27701]
[1735941458734,3.90651,3611.6,3611.5,0.27701]
[1735941459529,3.6295,3611.6,3611.5,0.27701]
[1735941460735,3.90651,3611.6,3611.5,0.27701]
[1735941461234,3.6295,3611.6,3611.3,0.8763]
[1735941461436,3.90651,3611.6,3611.5,0.27701]
[1735941462340,3.2078,3612.0,3611.4,2.09519567]
[1735941462535,0.27696,3612.3,3612.2,0.27696]
[1735941462836,0.27697,3612.2,3612.1,0.27696]
[1735941463425,3.2078,3612.4,3612.3,0.27695]
[1735941466335,3.2078,3613.2,3612.3,5.0]
[1735941466536,3.48469,3613.2,3613.1,0.27689]
[1735941466736,3.2078,3613.2,3613.1,0.27689]
[1735941467432,3.48468,3613.2,3613.1,0.27689]
[1735941467634,3.2078,3613.2,3613.1,0.27689]
[1735941467933,3.2078,3613.2,3612.7,1.086]
[1735941467934,0.27688,3613.3,3613.2,0.27688]
[1735941468134,0.27688,3613.3,3612.6,0.4126]
[1735941468135,2.09519567,3613.3,3612.6,0.4126]
[1735941468440,0.27692,3612.7,3612.6,0.27692]
[1735941469041,0.27688,3613.3,3612.6,0.96926]
[1735941469242,3.2078,3613.4,3612.6,0.69233]
[1735941469435,3.2078,3613.4,3613.1,0.27688]
[1735941469436,0.27689,3613.2,3613.1,0.27688]
[1735941469634,3.2078,3613.4,3612.6,0.4435]
[1735941469935,3.2078,3613.4,3612.7,0.69231]
[1735941470137,0.27689,3613.2,3613.1,0.27688]
[1735941470936,41.07689,3613.2,3613.1,0.27688]
[1735941471239,0.2769,3613.1,3613.0,0.27689]
[1735941473643,40.8,3613.2,3612.8,0.4461]
[1735941473840,0.27693,3612.7,3612.6,0.27692]
[1735941475233,3.2078,3613.0,3612.5,2.09519567]
[1735941475439,0.27692,3612.8,3612.7,0.27691]
[1735941475846,0.27691,3612.9,3612.8,0.27691]
[1735941476044,0.68671,3612.9,3612.8,0.27691]
[1735941477341,0.4098,3612.9,3612.8,0.27691]
[1735941478242,0.8679,3613.2,3612.5,2.78753567]
[1735941478546,0.8679,3613.2,3613.1,0.27689]
[1735941478746,3.2078,3613.4,3613.1,2.09519567]
[1735941478942,0.4145,3614.1,3614.0,0.27682]
[1735941479147,0.69131,3614.1,3614.0,0.27682]
[1735941480143,0.4145,3614.1,3614.0,0.27682]
[1735941480343,0.69131,3614.1,3614.0,0.27682]
[1735941482948,0.4145,3614.1,3614.0,0.27682]
[1735941483748,0.4145,3614.1,3613.6,0.69214]
[1735941484050,0.27684,3613.9,3613.8,0.27683]
[1735941489152,3.6223,3614.1,3613.4,3.20719567]
[1735941489359,0.27683,3614.0,3613.9,0.27682]
[1735941490153,0.27685,3613.7,3613.1,4.33933]
[1735941490359,3.48465,3613.7,3613.1,2.24353]
[1735941490547,3.48465,3613.7,3613.6,0.27685]
[1735941492549,3.2078,3613.7,3613.6,0.27685]
[1735941496362,3.48464,3613.7,3613.6,0.27685]
[1735941497264,0.27684,3613.9,3613.8,0.27683]
[1735941498264,0.8587,3614.0,3613.3,2.09519567]
[1735941498565,1.13552,3614.0,3613.9,0.27683]
[1735941498767,0.8587,3614.0,3613.9,0.27683]
[1735941499463,1.13552,3614.0,3613.9,0.27683]
[1735941504269,3.2078,3614.5,3613.7,5.30299567]
[1735941504477,0.4529,3614.3,3614.2,0.27681]
[1735941506077,0.7297,3614.3,3614.2,0.27681]
[1735941506478,0.27682,3614.2,3614.1,0.27681]
[1735941506975,4.0853,3614.5,3613.5,2.09519567]
[1735941506976,3.2078,3614.5,3613.5,2.09519567]
[1735941507178,3.2078,3614.4,3614.3,0.2768]
[1735941508181,0.4469,3614.6,3614.2,0.8642]
[1735941508383,0.4469,3614.6,3614.5,0.27678]
[1735941508775,0.72368,3614.6,3614.5,0.27678]
[1735941513086,0.4469,3614.6,3614.5,0.27678]
[1735941518393,0.72368,3614.6,3614.5,0.27678]
[1735941518782,0.4469,3614.6,3614.5,0.27678]
[1735941519187,0.72368,3614.6,3614.5,0.27678]
[1735941519389,0.4469,3614.6,3614.5,0.27678]
[1735941520195,0.27677,3614.7,3614.2,0.8642]
[1735941520394,3.48457,3614.8,3614.7,0.27677]
[1735941521894,5.30299567,3614.8,3614.2,0.8642]
[1735941522091,0.27678,3614.6,3614.5,0.27677]
[1735941527003,2.44754523,3614.6,3614.5,0.27677]
[1735941528096,2.44754523,3614.6,3614.1,4.33782538]
[1735941528097,0.2768,3614.4,3614.1,4.33782538]
[1735941528300,0.27681,3614.2,3614.1,4.61463538]
[1735941529303,3.48461,3614.2,3614.1,4.33782538]
[1735941529696,5.57980567,3614.2,3614.1,4.33782538]
[1735941529897,7.4737609,3614.2,3613.8,0.27683]
[1735941530092,0.27683,3613.9,3613.8,0.27683]
[1735941530594,5.37856523,3614.2,3613.7,0.4156]
[1735941530905,3.53291141,3614.1,3614.0,0.27681]
[1735941531404,3.25609141,3614.1,3614.0,0.27681]
[1735941532498,0.27681,3614.2,3614.1,0.27681]
[1735941533402,3.48461,3614.2,3614.1,0.27681]
[1735941534407,0.27681,3614.2,3614.1,0.27681]
[1735941536005,2.8955519,3614.3,3614.2,0.27681]
[1735941539911,0.27683,3613.9,3613.8,4.61465538]
[1735941540204,3.48463,3613.9,3613.8,4.33782538]
[1735941541205,3.48463,3613.9,3613.4,4.61468538]
[1735941541206,0.27686,3613.5,3613.4,4.61468538]
[1735941541404,0.27686,3613.5,3613.4,4.61469538]
[1735941541605,0.27686,3613.5,3613.4,4.33782538]
[1735941542709,2.17514368,3613.7,3613.3,5.05929538]
[1735941542905,0.27687,3613.4,3613.3,5.05929538]
[1735941543215,2.17514368,3613.7,3613.3,4.78242538]
[1735941543508,2.45199368,3613.7,3613.6,0.27685]
[1735941545405,0.27685,3613.7,3613.6,0.27685]
[1735941546208,0.4268,3613.8,3613.5,0.4519]
[1735941546404,0.70364,3613.8,3613.7,0.27684]
[1735941551010,0.4268,3613.8,3613.7,0.27684]
[1735941551311,3.2078,3613.9,3613.8,0.27684]
[1735941551515,3.2078,3613.9,3613.8,0.71514]
[1735941554609,2.58644368,3614.1,3613.8,0.4383]
[1735941554809,2.17514368,3614.1,3614.0,0.27682]
[1735941555121,2.17514368,3614.1,3614.0,2.37201567]
[1735941555610,2.17514368,3614.1,3614.0,2.79501567]
[1735941556716,0.27679,3614.4,3614.0,7.17642059]
[1735941556910,0.27679,3614.5,3614.4,0.27678]
[1735941562520,2.45193368,3614.5,3614.4,0.27678]
[1735941563416,2.17514368,3614.5,3614.4,0.27678]
[1735941563615,2.45192368,3614.5,3614.4,0.27678]
[1735941564412,0.27678,3614.5,3614.4,0.27678]
[1735941564615,0.72528,3614.5,3614.4,0.27678]
[1735941565213,2.45192368,3614.6,3614.5,0.27678]
[1735941565412,2.17514368,3614.6,3614.5,0.27678]
[1735941565816,2.45192368,3614.6,3614.5,0.27678]
[1735941567023,0.27678,3614.6,3614.5,0.27678]
[1735941567419,0.27678,3614.6,3614.5,0.70258]
[1735941568424,2.17514368,3614.8,3614.5,0.70258]
[1735941568425,2.17514368,3614.8,3614.5,0.4258]
[1735941568625,2.17514368,3614.8,3614.7,0.27677]
[1735941569322,1.31210298,3615.2,3614.7,6.40999567]
[1735941569519,1.31210298,3615.2,3615.1,5.57973567]
[1735941571629,0.429,3615.8,3615.1,18.44823798]
[1735941571829,0.429,3615.8,3615.7,0.27669]
[1735941572126,0.70568,3615.8,3615.7,0.27669]
[1735941572625,3.91348,3615.8,3615.7,0.27669]
[1735941573224,3.91348,3615.8,3615.6,0.27669]
[1735941573225,0.2767,3615.7,3615.6,0.27669]
[1735941573421,3.6368,3615.8,3615.5,2.09519567]
[1735941573422,0.429,3615.8,3615.5,2.09519567]
[1735941573622,3.91349,3615.8,3615.7,0.27669]
[1735941574822,3.6368,3615.8,3615.7,0.27669]
[1735941575024,3.6368,3615.8,3615.1,4.316896]
[1735941575325,3.6368,3615.8,3615.2,0.27673]
[1735941575326,3.48453,3615.3,3615.2,0.27673]
[1735941577130,3.2078,3615.3,3615.2,0.27673]
[1735941577325,0.4355,3615.4,3615.3,0.27672]
[1735941577531,0.4355,3615.4,3615.3,2.37191567]
[1735941580229,0.4355,3615.4,3615.3,0.27672]
[1735941580632,0.4355,3615.4,3615.0,2.09519567]
[1735941580830,0.27675,3615.0,3614.7,6.41209167]
[1735941581032,0.8837,3614.9,3614.8,0.27676]
[1735941583647,3.48453,3615.3,3615.2,0.27673]
[1735941583830,3.93053,3615.3,3615.2,0.27673]
[1735941585040,4.34523,3615.3,3615.2,0.27673]
[1735941586937,4.0685,3615.3,3615.2,0.27673]
[1735941587138,0.8607,3615.3,3615.2,0.27673]
[1735941588338,0.27668,3615.9,3615.8,0.27668]
[1735941588546,1.58638,3615.9,3615.8,0.27668]
[1735941595146,0.27669,3615.8,3615.7,0.27668]
[1735941595639,0.27669,3615.8,3615.4,0.2767]
[1735941595640,0.27672,3615.5,3615.4,0.2767]
[1735941597739,3.48452,3615.5,3615.4,0.2767]
[1735941600340,3.48451,3615.5,3615.4,0.2767]
[1735941600545,3.2078,3615.5,3615.4,0.2767]
[1735941600746,0.2767,3615.6,3615.1,2.78703567]
[1735941601042,1.3097,3615.9,3615.4,2.09519567]
[1735941601342,1.3097,3615.9,3615.8,2.37187567]
[1735941601745,3.48447,3616.0,3615.9,0.27668]
[1735941601940,3.6552,3616.0,3615.9,0.27668]
[1735941602141,0.4474,3616.0,3615.9,0.27668]
[1735941603643,3.2078,3616.4,3615.8,2.09519567]
[1735941603845,1.10263,3616.6,3616.1,2.09519567]
[1735941604040,1.10263,3616.6,3616.5,0.27663]
[1735941606149,1.10263,3616.6,3616.1,2.52239567]
[1735941606150,0.27664,3616.5,3616.4,0.27663]
[1735941607548,0.27665,3616.4,3616.3,0.27664]
[1735941608751,0.27665,3616.3,3616.2,0.27665]
[1735941610047,3.48445,3616.3,3616.2,0.27665]
[1735941610555,0.27665,3616.3,3616.2,0.27665]
[1735941610854,3.48445,3616.3,3616.2,0.27665]
[1735941611047,0.27665,3616.3,3616.2,0.27665]
[1735941611351,3.48445,3616.3,3616.2,0.27665]
[1735941611551,0.27665,3616.2,3616.1,2.09519567]
[1735941611851,0.27665,3616.2,3616.1,2.37185567]
[1735941613953,0.27667,3616.0,3615.9,4.593566]
[1735941614253,3.48447,3616.0,3615.9,4.316896]
[1735941614652,3.91987,3616.0,3615.9,4.316896]
[1735941615154,3.91987,3616.0,3615.9,4.593576]
[1735941615353,3.91987,3616.0,3615.9,0.27668]
[1735941616449,3.91987,3616.0,3615.5,7.10385167]
[1735941616450,3.6432,3616.0,3615.5,4.316896]
[1735941616758,3.4845,3615.6,3615.5,6.475344]
[1735941617049,0.4354,3616.0,3615.5,6.475344]
[1735941617050,3.6432,3616.0,3615.5,6.475344]
[1735941617255,0.27669,3615.8,3615.5,6.475344]
[1735941617553,0.27669,3615.8,3615.7,0.27669]
[1735941618255,0.2767,3615.7,3615.6,0.2767]
[1735941618758,0.27668,3615.9,3615.6,0.2767]
[1735941618955,0.2767,3615.7,3615.6,0.2767]
[1735941619254,0.27669,3615.7,3615.6,0.27669]
[1735941621558,3.6432,3616.0,3615.4,4.32614092]
[1735941621757,0.2767,3615.6,3615.5,0.2767]
[1735941622055,3.6432,3616.0,3615.6,0.27669]
[1735941622056,0.2767,3615.7,3615.6,0.27669]
[1735941622450,0.2767,3615.6,3615.5,0.2767]
[1735941622753,0.6962,3615.6,3615.5,0.2767]
[1735941625147,0.4195,3615.6,3615.5,0.2767]
[1735941625352,0.6962,3615.6,3615.5,0.2767]
[1735941625853,0.6962,3615.6,3615.5,4.60284092]
[1735941626461,0.4195,3615.6,3615.5,4.60284092]
[1735941626663,0.2767,3615.7,3615.6,0.2767]
[1735941639773,1.28712262,3615.7,3615.6,0.2767]
[1735941640280,1.45772262,3615.9,3615.5,4.32741471]
[1735941640472,1.73440262,3615.9,3615.8,0.27668]
[1735941642378,0.72398,3615.9,3615.8,0.27668]
[1735941644568,0.4473,3615.9,3615.8,0.27668]
[1735941644780,0.72398,3615.9,3615.8,0.27668]
[1735941645375,0.4473,3615.9,3615.8,0.27668]
[1735941647375,0.4354,3616.0,3615.9,0.27668]
[1735941647679,0.4354,3616.0,3615.9,1.28710262]
[1735941649482,0.4354,3616.0,3615.9,12.20479713]
[1735941653582,3.25609141,3616.5,3615.9,11.92811713]
[1735941653780,3.53272141,3616.5,3616.4,1.28706262]
[1735941655087,0.27663,3616.5,3616.4,1.28706262]
[1735941656988,0.27663,3616.5,3616.4,0.27664]
[1735941659083,3.48443,3616.5,3616.4,0.27664]
[1735941660085,0.27663,3616.5,3616.4,1.28706262]
[1735941665996,1.12853,3616.6,3616.5,0.27663]
[1735941677591,0.8519,3616.6,3616.5,0.27663]
[1735941679104,0.444,3616.6,3616.5,0.27663]
[1735941679504,0.27661,3616.8,3616.5,4.32785242]
[1735941679701,0.27661,3616.8,3616.7,1.28703262]
[1735941681403,0.2766,3616.9,3616.8,0.27659]
[1735941683901,0.2766,3617.0,3616.9,0.27659]
[1735941687912,0.27662,3616.8,3616.7,0.2766]
[1735941688110,0.27662,3616.8,3616.7,1.28702262]
[1735941692915,2.45041796,3616.9,3616.8,0.27661]
[1735941693112,0.2766,3616.9,3616.8,0.27661]
[1735941695918,2.45167559,3616.9,3616.8,4.60446242]
[1735941700516,0.2766,3616.9,3616.8,4.72227563]
[1735941702621,2.45166559,3617.0,3616.9,0.2766]
[1735941702923,2.17507559,3617.0,3616.9,0.2766]
[1735941704424,0.72273193,3617.0,3616.9,0.2766]
[1735941704623,0.22273193,3617.0,3616.9,0.2766]
[1735941704816,3.25609141,3617.4,3616.9,10.92100963]
[1735941705018,3.25609141,3617.4,3617.3,1.28696262]
[1735941705415,3.25609141,3617.4,3617.3,2.37396262]
[1735941706623,5.44544697,3617.8,3617.3,15.52128315]
[1735941706830,0.2765,3617.9,3617.8,0.2765]
[1735941707034,3.25609141,3618.1,3617.7,4.21822262]
[1735941707237,0.27649,3618.0,3617.9,0.27649]
[1735941708434,0.27649,3618.0,3617.9,1.28691262]
[1735941708733,0.27649,3618.0,3617.9,1.01042262]
[1735941709035,0.27649,3618.0,3617.9,1.28692262]
[1735941709231,0.27649,3618.0,3617.9,1.01042262]
[1735941709434,0.2765,3617.8,3617.7,1.01042262]
[1735941710022,0.2765,3617.8,3617.7,1.28693262]
[1735941714139,0.2765,3617.9,3617.8,0.27649]
[1735941714342,0.27649,3618.1,3618.0,0.27648]
[1735941714541,0.27649,3618.1,3618.0,1.28690262]
[1735941716235,0.27646,3618.3,3618.2,0.27646]
[1735941716436,3.25609141,3618.4,3618.3,0.27646]
[1735941716635,0.27646,3618.5,3618.4,0.27645]
[1735941716842,0.27646,3618.5,3618.4,1.28687262]
[1735941718938,0.27646,3618.5,3618.4,1.01042262]
[1735941719243,0.27646,3618.5,3618.4,1.28688262]
[1735941722844,0.27646,3618.5,3618.4,1.01042262]
[1735941724340,0.27646,3618.5,3618.4,1.28688262]
[1735941725046,0.27646,3618.5,3618.4,1.01042262]
[1735941725438,0.27646,3618.5,3618.4,1.28688262]
[1735941729346,0.71476,3618.5,3618.4,1.28688262]
[1735941746060,3.25609141,3619.2,3618.4,1.28688262]
[1735941746061,0.8813,3619.1,3618.4,4.21822262]